[Event "Titled Tuesday Blitz April 26 Early 2022"]
[White "Zlatin, Alexander"]
[Black "Lauridsen, Jesper Morch"]
[WhiteFideId "2810549"]
[BlackFideId "1401890"]
[WhiteElo "2228"]
[BlackElo "2293"]
[Result "1-0"]
[Round "05"]
[TimeControl "180+1"]
[Date "2022.04.26"]
[WhiteClock "0:00:04"]
[BlackClock "0:00:01"]

1. d4 {[%clk 0:02:44]}  Nf6 {[%clk 0:02:59]} 2. Nc3 {[%clk 0:02:40]}  d5 {[%clk 0:02:57]} 3. Bf4 {[%clk 0:02:41]}  c6 {[%clk 0:02:54]} 4. e3 {[%clk 0:02:40]}  Qa5 {[%clk 0:02:51]} 5. Bd3 {[%clk 0:02:34]}  e6 {[%clk 0:02:39]} 6. Ne2 {[%clk 0:02:33]}  Nh5 {[%clk 0:02:27]} 7. O-O {[%clk 0:02:29]}  Nxf4 {[%clk 0:02:23]} 8. Nxf4 {[%clk 0:02:30]}  Bd6 {[%clk 0:02:19]} 9. Qh5 {[%clk 0:02:23]}  Qc7 {[%clk 0:01:52]} 10. Nce2 {[%clk 0:02:09]}  g6 {[%clk 0:01:45]} 11. Qh6 {[%clk 0:01:52]}  Bf8 {[%clk 0:01:40]} 12. Qh4 {[%clk 0:01:42]}  Be7 {[%clk 0:01:35]} 13. Qg3 {[%clk 0:01:37]}  h5 {[%clk 0:01:20]} 14. c4 {[%clk 0:01:11]}  g5 {[%clk 0:01:09]} 15. Nxh5 {[%clk 0:01:03]}  Bd6 {[%clk 0:01:02]} 16. Qxg5 {[%clk 0:00:55]}  Bxh2+ {[%clk 0:00:58]} 17. Kh1 {[%clk 0:00:55]}  Bd6 {[%clk 0:00:38]} 18. g4 {[%clk 0:00:51]}  Be7 {[%clk 0:00:34]} 19. Qg7 {[%clk 0:00:46]}  Rf8 {[%clk 0:00:26]} 20. Nef4 {[%clk 0:00:41]}  e5 {[%clk 0:00:20]} 21. dxe5 {[%clk 0:00:35]}  Nd7 {[%clk 0:00:18]} 22. cxd5 {[%clk 0:00:33]}  Nxe5 {[%clk 0:00:17]} 23. Bf5 {[%clk 0:00:20]}  Bxf5 {[%clk 0:00:14]} 24. gxf5 {[%clk 0:00:21]}  O-O-O {[%clk 0:00:08]} 25. dxc6 {[%clk 0:00:21]}  Rg8 {[%clk 0:00:08]} 26. cxb7+ {[%clk 0:00:20]}  Kb8 {[%clk 0:00:08]} 27. Qh7 {[%clk 0:00:16]}  Rh8 {[%clk 0:00:07]} 28. Qg7 {[%clk 0:00:17]}  Rdg8 {[%clk 0:00:07]} 29. Qxg8+ {[%clk 0:00:12]}  Rxg8 {[%clk 0:00:07]} 30. f6 {[%clk 0:00:12]}  Bd8 {[%clk 0:00:05]} 31. Rg1 {[%clk 0:00:10]}  Rh8 {[%clk 0:00:05]} 32. Rad1 {[%clk 0:00:05]}  Bxf6 {[%clk 0:00:04]} 33. Rg2 {[%clk 0:00:04]}  Ng6 {[%clk 0:00:03]} 34. Kg1 {[%clk 0:00:03]}  Nxf4 {[%clk 0:00:02]} 35. Nxf4 {[%clk 0:00:04]}  Be5 {[%clk 0:00:01]} 36. Nd3 {[%clk 0:00:04]} 1-0


[Site "https://www.chess.com"]

[Event "Titled Tuesday Blitz April 26 Early 2022"]
[White "Al-Tarboush, Ward"]
[Black "Maksimovic, Bojan"]
[WhiteFideId "7601450"]
[BlackFideId "14408120"]
[WhiteElo "2507"]
[BlackElo "2763"]
[Result "0-1"]
[Round "06"]
[TimeControl "180+1"]
[Date "2022.04.26"]
[WhiteClock "0:01:58"]
[BlackClock "0:02:29"]

1. e4 {[%clk 0:03:00]}  e5 {[%clk 0:02:59]} 2. Nf3 {[%clk 0:03:01]}  Nf6 {[%clk 0:03:00]} 3. Nxe5 {[%clk 0:02:59]}  d6 {[%clk 0:03:00]} 4. Nf3 {[%clk 0:02:59]}  Nxe4 {[%clk 0:03:00]} 5. d4 {[%clk 0:02:58]}  Nf6 {[%clk 0:02:57]} 6. Bd3 {[%clk 0:02:57]}  d5 {[%clk 0:02:54]} 7. Bg5 {[%clk 0:02:55]}  Be7 {[%clk 0:02:54]} 8. Nc3 {[%clk 0:02:51]}  O-O {[%clk 0:02:53]} 9. Qd2 {[%clk 0:02:50]}  c6 {[%clk 0:02:52]} 10. O-O-O {[%clk 0:02:49]}  Bg4 {[%clk 0:02:52]} 11. h3 {[%clk 0:02:48]}  Bxf3 {[%clk 0:02:52]} 12. g3 {[%clk 0:02:48]}  Bxh1 {[%clk 0:02:50]} 13. Rxh1 {[%clk 0:02:45]}  Ne4 {[%clk 0:02:50]} 14. Nxe4 {[%clk 0:02:42]}  dxe4 {[%clk 0:02:50]} 15. Bxe7 {[%clk 0:02:42]}  Qxe7 {[%clk 0:02:51]} 16. Re1 {[%clk 0:02:40]}  f5 {[%clk 0:02:51]} 17. Bc4+ {[%clk 0:02:40]}  Kh8 {[%clk 0:02:51]} 18. h4 {[%clk 0:02:40]}  Nd7 {[%clk 0:02:50]} 19. h5 {[%clk 0:02:40]}  h6 {[%clk 0:02:51]} 20. Rg1 {[%clk 0:02:36]}  Nf6 {[%clk 0:02:50]} 21. Kb1 {[%clk 0:02:33]}  Ng4 {[%clk 0:02:50]} 22. Qf4 {[%clk 0:02:30]}  Rae8 {[%clk 0:02:48]} 23. a3 {[%clk 0:02:23]}  e3 {[%clk 0:02:39]} 24. f3 {[%clk 0:02:20]}  Nf2 {[%clk 0:02:38]} 25. g4 {[%clk 0:02:13]}  fxg4 {[%clk 0:02:37]} 26. Qg3 {[%clk 0:02:10]}  Rxf3 {[%clk 0:02:35]} 27. Qg2 {[%clk 0:02:06]}  e2 {[%clk 0:02:34]} 28. Re1 {[%clk 0:02:05]}  Qf6 {[%clk 0:02:30]} 29. Rxe2 {[%clk 0:01:58]}  Rxe2 {[%clk 0:02:29]} 30. Bxe2 {[%clk 0:01:59]}  Qxd4 {[%clk 0:02:26]} 31. Bxf3 {[%clk 0:01:57]}  gxf3 {[%clk 0:02:26]} 32. Qxf3 {[%clk 0:01:58]}  Qd1+ {[%clk 0:02:26]} 33. Qxd1 {[%clk 0:01:58]}  Nxd1 {[%clk 0:02:27]} 34. Kc1 {[%clk 0:01:58]}  Ne3 {[%clk 0:02:26]} 35. Kd2 {[%clk 0:01:58]}  Nf1+ {[%clk 0:02:26]} 36. Ke2 {[%clk 0:01:58]}  Ng3+ {[%clk 0:02:27]} 37. Kf3 {[%clk 0:01:58]}  Nxh5 {[%clk 0:02:28]} 38. Ke4 {[%clk 0:01:58]}  Nf6+ {[%clk 0:02:28]} 39. Ke5 {[%clk 0:01:58]}  h5 {[%clk 0:02:29]} 40. Kf4 {[%clk 0:01:58]}  h4 {[%clk 0:02:29]} 0-1


[Site "https://www.chess.com"]

[Event "Titled Tuesday Blitz April 26 Early 2022"]
[White "Ambartsumova, Karina"]
[Black "Jumabayev, Rinat"]
[WhiteFideId "4166299"]
[BlackFideId "13702661"]
[WhiteElo "2262"]
[BlackElo "2561"]
[Result "0-1"]
[Round "06"]
[TimeControl "180+1"]
[Date "2022.04.26"]
[WhiteClock "0:00:18"]
[BlackClock "0:00:55"]

1. Nf3 {[%clk 0:03:00]}  d5 {[%clk 0:02:58]} 2. d4 {[%clk 0:03:00]}  Nf6 {[%clk 0:02:57]} 3. c4 {[%clk 0:03:00]}  c6 {[%clk 0:02:56]} 4. g3 {[%clk 0:02:59]}  dxc4 {[%clk 0:02:55]} 5. Bg2 {[%clk 0:02:59]}  b5 {[%clk 0:02:55]} 6. Ne5 {[%clk 0:02:59]}  e6 {[%clk 0:02:53]} 7. O-O {[%clk 0:02:47]}  Bb7 {[%clk 0:02:41]} 8. b3 {[%clk 0:02:42]}  cxb3 {[%clk 0:02:40]} 9. axb3 {[%clk 0:02:43]}  Be7 {[%clk 0:02:34]} 10. Nc3 {[%clk 0:02:41]}  Qb6 {[%clk 0:02:31]} 11. Be3 {[%clk 0:02:18]}  Nd5 {[%clk 0:02:22]} 12. Nxd5 {[%clk 0:01:35]}  cxd5 {[%clk 0:02:23]} 13. Rc1 {[%clk 0:01:29]}  Nc6 {[%clk 0:02:14]} 14. Nd3 {[%clk 0:01:28]}  O-O {[%clk 0:02:13]} 15. Nc5 {[%clk 0:01:22]}  a5 {[%clk 0:02:10]} 16. Nd7 {[%clk 0:01:21]}  Qd8 {[%clk 0:02:06]} 17. Nxf8 {[%clk 0:01:21]}  Bxf8 {[%clk 0:02:07]} 18. Qd3 {[%clk 0:01:17]}  Qb6 {[%clk 0:01:58]} 19. Rb1 {[%clk 0:01:07]}  Nb4 {[%clk 0:01:49]} 20. Qd2 {[%clk 0:01:06]}  a4 {[%clk 0:01:49]} 21. bxa4 {[%clk 0:01:03]}  bxa4 {[%clk 0:01:50]} 22. Qc3 {[%clk 0:00:47]}  a3 {[%clk 0:01:38]} 23. Rb3 {[%clk 0:00:37]}  a2 {[%clk 0:01:36]} 24. Ra1 {[%clk 0:00:37]}  Ba6 {[%clk 0:00:58]} 25. Bd2 {[%clk 0:00:32]}  Bc4 {[%clk 0:00:58]} 26. Rxb4 {[%clk 0:00:24]}  Bxb4 {[%clk 0:00:55]} 27. Qxb4 {[%clk 0:00:25]}  Qxb4 {[%clk 0:00:56]} 28. Bxb4 {[%clk 0:00:26]}  Rb8 {[%clk 0:00:56]} 29. Bc3 {[%clk 0:00:26]}  Rb3 {[%clk 0:00:57]} 30. Ba5 {[%clk 0:00:18]}  Rb1+ {[%clk 0:00:55]} 0-1


[Site "https://www.chess.com"]

[Event "Titled Tuesday Blitz April 26 Early 2022"]
[White "Andreikin, Dmitry"]
[Black "Terry, Renato"]
[WhiteFideId "4158814"]
[BlackFideId "3803457"]
[WhiteElo "2736"]
[BlackElo "2577"]
[Result "1-0"]
[Round "06"]
[TimeControl "180+1"]
[Date "2022.04.26"]
[WhiteClock "0:00:49"]
[BlackClock "0:00:02"]

1. d4 {[%clk 0:03:00]}  d5 {[%clk 0:02:58]} 2. c4 {[%clk 0:03:01]}  dxc4 {[%clk 0:02:58]} 3. e4 {[%clk 0:03:01]}  Nc6 {[%clk 0:02:58]} 4. d5 {[%clk 0:03:00]}  Ne5 {[%clk 0:02:58]} 5. Nc3 {[%clk 0:03:00]}  e6 {[%clk 0:02:56]} 6. Bf4 {[%clk 0:02:58]}  Ng6 {[%clk 0:02:55]} 7. Bg3 {[%clk 0:02:59]}  e5 {[%clk 0:02:54]} 8. Bxc4 {[%clk 0:02:53]}  a6 {[%clk 0:02:54]} 9. Qa4+ {[%clk 0:02:32]}  Bd7 {[%clk 0:02:45]} 10. Qb3 {[%clk 0:02:32]}  b5 {[%clk 0:02:45]} 11. Bd3 {[%clk 0:02:32]}  Bd6 {[%clk 0:02:44]} 12. Nf3 {[%clk 0:02:30]}  Nf6 {[%clk 0:02:43]} 13. O-O {[%clk 0:02:29]}  Nh5 {[%clk 0:02:41]} 14. a4 {[%clk 0:02:28]}  Nhf4 {[%clk 0:02:25]} 15. Rfd1 {[%clk 0:02:23]}  Nxd3 {[%clk 0:02:09]} 16. Rxd3 {[%clk 0:01:42]}  O-O {[%clk 0:02:09]} 17. axb5 {[%clk 0:01:37]}  axb5 {[%clk 0:02:10]} 18. Rxa8 {[%clk 0:01:35]}  Qxa8 {[%clk 0:02:10]} 19. Qd1 {[%clk 0:01:31]}  Qa6 {[%clk 0:02:01]} 20. Nb1 {[%clk 0:01:26]}  Ra8 {[%clk 0:01:58]} 21. h4 {[%clk 0:01:26]}  Bg4 {[%clk 0:01:47]} 22. Nbd2 {[%clk 0:01:24]}  f6 {[%clk 0:01:40]} 23. Qc2 {[%clk 0:01:22]}  Ne7 {[%clk 0:01:35]} 24. Nb3 {[%clk 0:01:19]}  Qa4 {[%clk 0:01:32]} 25. Nfd2 {[%clk 0:01:19]}  Bd7 {[%clk 0:00:50]} 26. f3 {[%clk 0:01:16]}  h5 {[%clk 0:00:42]} 27. Bf2 {[%clk 0:01:14]}  Ng6 {[%clk 0:00:42]} 28. g3 {[%clk 0:01:14]}  f5 {[%clk 0:00:42]} 29. Rc3 {[%clk 0:01:12]}  f4 {[%clk 0:00:40]} 30. Nc5 {[%clk 0:01:08]}  Qxc2 {[%clk 0:00:34]} 31. Rxc2 {[%clk 0:01:08]}  fxg3 {[%clk 0:00:27]} 32. Bxg3 {[%clk 0:01:07]}  Bc8 {[%clk 0:00:28]} 33. Ndb3 {[%clk 0:01:07]}  Kf7 {[%clk 0:00:25]} 34. Nd3 {[%clk 0:01:07]}  Ke8 {[%clk 0:00:22]} 35. Kf2 {[%clk 0:01:04]}  Ra4 {[%clk 0:00:19]} 36. Ke3 {[%clk 0:01:04]}  Rc4 {[%clk 0:00:20]} 37. Rg2 {[%clk 0:01:04]}  Kf7 {[%clk 0:00:19]} 38. Be1 {[%clk 0:01:03]}  Bh3 {[%clk 0:00:15]} 39. Rg5 {[%clk 0:01:02]}  Rc2 {[%clk 0:00:14]} 40. Bc3 {[%clk 0:01:01]}  Bf1 {[%clk 0:00:05]} 41. Nxe5+ {[%clk 0:00:59]}  Bxe5 {[%clk 0:00:04]} 42. Bxe5 {[%clk 0:00:59]}  Re2+ {[%clk 0:00:02]} 43. Kd4 {[%clk 0:00:59]}  Rxb2 {[%clk 0:00:02]} 44. Nc5 {[%clk 0:00:55]}  Nxh4 {[%clk 0:00:03]} 45. Rxg7+ {[%clk 0:00:54]}  Ke8 {[%clk 0:00:03]} 46. Rg8+ {[%clk 0:00:54]}  Kf7 {[%clk 0:00:03]} 47. Rg7+ {[%clk 0:00:54]}  Ke8 {[%clk 0:00:04]} 48. Bxc7 {[%clk 0:00:53]}  Nxf3+ {[%clk 0:00:03]} 49. Ke3 {[%clk 0:00:53]}  Nh4 {[%clk 0:00:02]} 50. d6 {[%clk 0:00:53]}  Re2+ {[%clk 0:00:02]} 51. Kd4 {[%clk 0:00:49]}  Rd2+ {[%clk 0:00:02]} 52. Kc3 {[%clk 0:00:49]}  Rd1 {[%clk 0:00:02]} 53. d7+ {[%clk 0:00:49]} 1-0


[Site "https://www.chess.com"]

[Event "Titled Tuesday Blitz April 26 Early 2022"]
[White "Andrews, Todd"]
[Black "Kejzar, Petra"]
[WhiteFideId "2012456"]
[BlackFideId "14610213"]
[WhiteElo "2349"]
[BlackElo "2003"]
[Result "0-1"]
[Round "06"]
[TimeControl "180+1"]
[Date "2022.04.26"]
[WhiteClock "0:00:05"]
[BlackClock "0:00:08"]

1. e4 {[%clk 0:03:00]}  c5 {[%clk 0:02:59]} 2. Nf3 {[%clk 0:03:00]}  g6 {[%clk 0:02:59]} 3. d4 {[%clk 0:02:58]}  cxd4 {[%clk 0:03:00]} 4. Nxd4 {[%clk 0:02:57]}  Bg7 {[%clk 0:03:00]} 5. c4 {[%clk 0:02:58]}  Nc6 {[%clk 0:03:00]} 6. Be3 {[%clk 0:02:57]}  Nf6 {[%clk 0:02:55]} 7. Nc3 {[%clk 0:02:57]}  d6 {[%clk 0:02:50]} 8. Be2 {[%clk 0:02:56]}  O-O {[%clk 0:02:50]} 9. O-O {[%clk 0:02:55]}  Be6 {[%clk 0:02:47]} 10. Nc2 {[%clk 0:02:43]}  a5 {[%clk 0:02:46]} 11. Rb1 {[%clk 0:02:37]}  Nd7 {[%clk 0:02:44]} 12. Qd2 {[%clk 0:02:36]}  Nc5 {[%clk 0:02:40]} 13. f3 {[%clk 0:02:36]}  a4 {[%clk 0:02:38]} 14. Rfc1 {[%clk 0:02:33]}  Qa5 {[%clk 0:02:36]} 15. Nd4 {[%clk 0:02:15]}  Nxd4 {[%clk 0:02:30]} 16. Bxd4 {[%clk 0:02:14]}  Bxd4+ {[%clk 0:02:31]} 17. Qxd4 {[%clk 0:02:12]}  Rfc8 {[%clk 0:02:29]} 18. h4 {[%clk 0:02:00]}  Nd7 {[%clk 0:02:27]} 19. Nd5 {[%clk 0:01:48]}  Bxd5 {[%clk 0:02:24]} 20. cxd5 {[%clk 0:01:46]}  Qb6 {[%clk 0:02:20]} 21. Qxb6 {[%clk 0:01:44]}  Nxb6 {[%clk 0:02:21]} 22. Kf2 {[%clk 0:01:40]}  Kf8 {[%clk 0:02:18]} 23. Ke3 {[%clk 0:01:40]}  a3 {[%clk 0:02:13]} 24. b3 {[%clk 0:01:36]}  Nd7 {[%clk 0:02:01]} 25. h5 {[%clk 0:01:27]}  Nc5 {[%clk 0:01:44]} 26. f4 {[%clk 0:01:25]}  Rab8 {[%clk 0:01:20]} 27. Bb5 {[%clk 0:01:19]}  b6 {[%clk 0:01:17]} 28. b4 {[%clk 0:01:17]}  Nb7 {[%clk 0:01:12]} 29. Rxc8+ {[%clk 0:01:10]}  Rxc8 {[%clk 0:01:11]} 30. Ba6 {[%clk 0:01:11]}  Rc7 {[%clk 0:01:03]} 31. Bxb7 {[%clk 0:01:09]}  Rxb7 {[%clk 0:01:04]} 32. Rc1 {[%clk 0:01:09]}  gxh5 {[%clk 0:01:03]} 33. Rc8+ {[%clk 0:01:07]}  Kg7 {[%clk 0:01:03]} 34. Ra8 {[%clk 0:01:04]}  Rc7 {[%clk 0:01:03]} 35. Rxa3 {[%clk 0:01:04]}  Rc2 {[%clk 0:01:03]} 36. Ra6 {[%clk 0:00:45]}  Rxg2 {[%clk 0:00:59]} 37. Rxb6 {[%clk 0:00:44]}  Rxa2 {[%clk 0:00:59]} 38. Kf3 {[%clk 0:00:44]}  Ra3+ {[%clk 0:00:53]} 39. Kg2 {[%clk 0:00:42]}  Re3 {[%clk 0:00:50]} 40. Rb7 {[%clk 0:00:38]}  Rxe4 {[%clk 0:00:50]} 41. b5 {[%clk 0:00:38]}  Kf6 {[%clk 0:00:50]} 42. b6 {[%clk 0:00:34]}  Rxf4 {[%clk 0:00:48]} 43. Rb8 {[%clk 0:00:35]}  Rb4 {[%clk 0:00:45]} 44. b7 {[%clk 0:00:35]}  h4 {[%clk 0:00:38]} 45. Kh3 {[%clk 0:00:35]}  h5 {[%clk 0:00:37]} 46. Kh2 {[%clk 0:00:35]}  Rb3 {[%clk 0:00:37]} 47. Kg2 {[%clk 0:00:35]}  h3+ {[%clk 0:00:35]} 48. Kh2 {[%clk 0:00:35]}  h4 {[%clk 0:00:35]} 49. Kh1 {[%clk 0:00:34]}  Rb2 {[%clk 0:00:33]} 50. Kg1 {[%clk 0:00:34]}  h2+ {[%clk 0:00:31]} 51. Kh1 {[%clk 0:00:34]}  h3 {[%clk 0:00:28]} 52. Rf8 {[%clk 0:00:21]}  Rxb7 {[%clk 0:00:27]} 53. Kxh2 {[%clk 0:00:22]}  Rb3 {[%clk 0:00:24]} 54. Rg8 {[%clk 0:00:21]}  Rd3 {[%clk 0:00:23]} 55. Rh8 {[%clk 0:00:19]}  Ke5 {[%clk 0:00:21]} 56. Rh7 {[%clk 0:00:17]}  Kxd5 {[%clk 0:00:17]} 57. Rxf7 {[%clk 0:00:17]}  e5 {[%clk 0:00:17]} 58. Re7 {[%clk 0:00:15]}  Kd4 {[%clk 0:00:16]} 59. Re8 {[%clk 0:00:14]}  e4 {[%clk 0:00:16]} 60. Re6 {[%clk 0:00:13]}  d5 {[%clk 0:00:15]} 61. Re8 {[%clk 0:00:13]}  Rf3 {[%clk 0:00:15]} 62. Re7 {[%clk 0:00:12]}  Kd3 {[%clk 0:00:15]} 63. Rd7 {[%clk 0:00:11]}  d4 {[%clk 0:00:15]} 64. Re7 {[%clk 0:00:10]}  e3 {[%clk 0:00:16]} 65. Re6 {[%clk 0:00:09]}  Kd2 {[%clk 0:00:16]} 66. Rd6 {[%clk 0:00:08]}  d3 {[%clk 0:00:16]} 67. Re6 {[%clk 0:00:08]}  e2 {[%clk 0:00:16]} 68. Rd6 {[%clk 0:00:07]}  Ke1 {[%clk 0:00:08]} 69. Rxd3 {[%clk 0:00:07]}  Rxd3 {[%clk 0:00:07]} 70. Kg1 {[%clk 0:00:07]}  Kd1 {[%clk 0:00:07]} 71. Kh2 {[%clk 0:00:06]}  Rd2 {[%clk 0:00:07]} 72. Kxh3 {[%clk 0:00:05]}  e1=Q {[%clk 0:00:08]} 0-1


[Site "https://www.chess.com"]

[Event "Titled Tuesday Blitz April 26 Early 2022"]
[White "Arabidze, Meri"]
[Black "Wachinger, Guenther"]
[WhiteFideId "13604040"]
[BlackFideId "4604261"]
[WhiteElo "2667"]
[BlackElo "2449"]
[Result "1-0"]
[Round "06"]
[TimeControl "180+1"]
[Date "2022.04.26"]
[WhiteClock "0:02:15"]
[BlackClock "0:02:05"]

1. Nf3 {[%clk 0:02:55]}  c5 {[%clk 0:02:59]} 2. c4 {[%clk 0:02:53]}  b6 {[%clk 0:02:53]} 3. e3 {[%clk 0:02:53]}  Bb7 {[%clk 0:02:52]} 4. d4 {[%clk 0:02:53]}  cxd4 {[%clk 0:02:52]} 5. exd4 {[%clk 0:02:54]}  Nf6 {[%clk 0:02:53]} 6. d5 {[%clk 0:02:54]}  e6 {[%clk 0:02:52]} 7. Nc3 {[%clk 0:02:53]}  Bb4 {[%clk 0:02:52]} 8. Bd2 {[%clk 0:02:51]}  O-O {[%clk 0:02:52]} 9. Be2 {[%clk 0:02:36]}  exd5 {[%clk 0:02:52]} 10. Nxd5 {[%clk 0:02:20]}  Nxd5 {[%clk 0:02:46]} 11. cxd5 {[%clk 0:02:20]}  Qe7 {[%clk 0:02:14]} 12. O-O {[%clk 0:02:18]}  Na6 {[%clk 0:02:04]} 13. Re1 {[%clk 0:02:17]}  Nc5 {[%clk 0:02:05]} 14. Bxb4 {[%clk 0:02:15]} 1-0


[Site "https://www.chess.com"]

[Event "Titled Tuesday Blitz April 26 Early 2022"]
[White "Avazkhonov, Alikhon"]
[Black "Winkels, Marcel"]
[WhiteFideId "14208504"]
[BlackFideId "1003887"]
[WhiteElo "1739"]
[BlackElo "1900"]
[Result "1-0"]
[Round "06"]
[TimeControl "180+1"]
[Date "2022.04.26"]
[WhiteClock "0:02:16"]
[BlackClock "0:00:12"]

1. e4 {[%clk 0:03:00]}  c5 {[%clk 0:02:59]} 2. Nc3 {[%clk 0:03:00]}  d6 {[%clk 0:02:59]} 3. g3 {[%clk 0:03:01]}  Nc6 {[%clk 0:02:57]} 4. Bg2 {[%clk 0:03:01]}  g6 {[%clk 0:02:57]} 5. d3 {[%clk 0:03:02]}  Bg7 {[%clk 0:02:57]} 6. Nh3 {[%clk 0:03:02]}  e6 {[%clk 0:02:51]} 7. O-O {[%clk 0:03:02]}  Nge7 {[%clk 0:02:52]} 8. Be3 {[%clk 0:03:03]}  Nd4 {[%clk 0:02:43]} 9. Qd2 {[%clk 0:03:02]}  h5 {[%clk 0:02:40]} 10. f4 {[%clk 0:02:58]}  h4 {[%clk 0:02:39]} 11. g4 {[%clk 0:02:58]}  Rb8 {[%clk 0:02:29]} 12. Rae1 {[%clk 0:02:52]}  O-O {[%clk 0:02:24]} 13. Bf2 {[%clk 0:02:47]}  Nec6 {[%clk 0:02:21]} 14. g5 {[%clk 0:02:47]}  b5 {[%clk 0:02:09]} 15. Bxh4 {[%clk 0:02:45]}  b4 {[%clk 0:02:08]} 16. Nd1 {[%clk 0:02:38]}  Bd7 {[%clk 0:01:55]} 17. Ne3 {[%clk 0:02:37]}  a5 {[%clk 0:01:44]} 18. f5 {[%clk 0:02:25]}  exf5 {[%clk 0:01:42]} 19. exf5 {[%clk 0:02:25]}  Nxf5 {[%clk 0:01:33]} 20. Nxf5 {[%clk 0:02:25]}  gxf5 {[%clk 0:01:31]} 21. Nf4 {[%clk 0:02:21]}  Ne5 {[%clk 0:01:27]} 22. Nd5 {[%clk 0:02:19]}  Ng6 {[%clk 0:01:19]} 23. Nf6+ {[%clk 0:02:17]}  Kh8 {[%clk 0:01:12]} 24. Qe2 {[%clk 0:02:14]}  Bxf6 {[%clk 0:00:14]} 25. gxf6 {[%clk 0:02:15]}  Nxh4 {[%clk 0:00:13]} 26. Qh5+ {[%clk 0:02:16]}  Kg8 {[%clk 0:00:12]} 27. Qh6 {[%clk 0:02:16]} 1-0


[Site "https://www.chess.com"]

[Event "Titled Tuesday Blitz April 26 Early 2022"]
[White "Bachmann, Axel"]
[Black "Hernandez Bermudez, Ulises Eduardo"]
[WhiteFideId "3700488"]
[BlackFideId "3902510"]
[WhiteElo "2587"]
[BlackElo "2056"]
[Result "1-0"]
[Round "06"]
[TimeControl "180+1"]
[Date "2022.04.26"]
[WhiteClock "0:01:39"]
[BlackClock "0:01:52"]

1. d4 {[%clk 0:02:58]}  Nf6 {[%clk 0:02:59]} 2. g3 {[%clk 0:02:58]}  g6 {[%clk 0:02:58]} 3. Bg2 {[%clk 0:02:58]}  Bg7 {[%clk 0:02:58]} 4. e4 {[%clk 0:02:58]}  d6 {[%clk 0:02:57]} 5. Ne2 {[%clk 0:02:59]}  O-O {[%clk 0:02:57]} 6. O-O {[%clk 0:02:59]}  c5 {[%clk 0:02:57]} 7. dxc5 {[%clk 0:02:59]}  dxc5 {[%clk 0:02:56]} 8. e5 {[%clk 0:03:00]}  Qxd1 {[%clk 0:02:54]} 9. Rxd1 {[%clk 0:03:01]}  Nfd7 {[%clk 0:02:55]} 10. f4 {[%clk 0:03:00]}  Nc6 {[%clk 0:02:54]} 11. Be3 {[%clk 0:02:55]}  Re8 {[%clk 0:02:40]} 12. Nbc3 {[%clk 0:02:51]}  Nb4 {[%clk 0:02:38]} 13. Rac1 {[%clk 0:02:46]}  Rb8 {[%clk 0:02:22]} 14. a3 {[%clk 0:02:41]}  Nc6 {[%clk 0:02:20]} 15. Ne4 {[%clk 0:02:20]}  Na5 {[%clk 0:02:00]} 16. b3 {[%clk 0:01:52]}  b6 {[%clk 0:01:57]} 17. N2c3 {[%clk 0:01:48]}  Nf8 {[%clk 0:01:52]} 18. Nb5 {[%clk 0:01:39]} 1-0


[Site "https://www.chess.com"]